bitfinex/quotes_SOLUSD_20240925
["timestamp","ask_amount","ask_price","bid_price","bid_amount"]
[1727306147957,6.7304,148.58,148.54,16.4466]
[1727306148884,50.79217379,148.62,148.54,16.4466]
[1727306149075,6.7295,148.6,148.56,6.7312]
[1727306149286,6.7295,148.6,148.55,23.5604]
[1727306150664,6.73,148.59,148.55,23.5604]
[1727306151288,6.73,148.59,148.55,16.8288]
[1727306151474,7.11645385,148.58,148.54,16.4466]
[1727306151677,6.7304,148.58,148.54,16.4466]
[1727306151877,0.38605385,148.57,148.54,16.4466]
[1727306152079,7.11695385,148.57,148.54,16.4466]
[1727306152368,6.7309,148.57,148.54,16.4466]
[1727306158293,6.70073,148.57,148.54,16.4466]
[1727306158476,20.0,148.6,148.55,1.34629677]
[1727306158680,26.7295,148.6,148.54,33.2761]
[1727306158881,26.7295,148.6,148.55,6.7313]
[1727306160081,6.7288,148.62,148.57,6.7303]
[1727306160287,7.25663721,148.63,148.56,23.5586]
[1727306160586,6.7295,148.6,148.56,23.5586]
[1727306160990,0.38605385,148.59,148.55,6.1813]
[1727306161201,6.7305,148.58,148.55,6.1813]
[1727306161366,6.7299,148.59,148.56,1.34623125]
[1727306161785,6.7295,148.6,148.56,8.07743125]
[1727306162391,6.7291,148.61,148.56,1.34623125]
[1727306162699,26.9699362,148.63,148.59,6.7298]
[1727306163076,26.9699362,148.63,148.58,6.7302]
[1727306163399,6.7286,148.62,148.58,6.7302]
[1727306166085,0.2418362,148.63,148.57,16.8265]
[1727306166289,6.7293,148.61,148.57,16.8265]
[1727306167193,0.2418362,148.63,148.59,12.18380459]
[1727306167379,0.2418362,148.63,148.6,0.25098]
[1727306167584,0.2418362,148.63,148.61,1.3455175]
[1727306167778,0.2418362,148.63,148.62,6.7285]
[1727306170786,0.2418362,148.63,148.6,0.25098]
[1727306170977,0.2418362,148.63,148.61,6.7289]
[1727306171479,0.2418362,148.63,148.6,6.7293]
[1727306172011,0.2418362,148.63,148.61,6.7289]
[1727306175508,0.2418362,148.63,148.62,6.7285]
[1727306175708,0.2418362,148.63,148.62,8.0740718]
[1727306175909,0.2418362,148.63,148.62,20.50885639]
[1727306176080,0.2418362,148.63,148.62,37.10935639]
[1727306176286,0.2418362,148.68,148.67,6.7263]
[1727306176803,0.2418362,148.68,148.66,23.5429]
[1727306179500,0.2418362,148.68,148.67,1.34510245]
[1727306179804,0.2418362,148.68,148.67,8.07140245]
[1727306180582,0.2418362,148.68,148.66,16.8163]
[1727306180800,0.2418362,148.68,148.66,23.5429]
[1727306181215,0.2418362,148.68,148.66,16.8163]
[1727306181502,0.2418362,148.68,148.67,1.34513052]
[1727306181705,0.2418362,148.68,148.64,6.85299]
[1727306181913,0.2418362,148.68,148.64,0.25098]
[1727306182096,0.2418362,148.68,148.65,6.7268]
[1727306182710,0.2418362,148.68,148.64,0.25098]
[1727306182884,0.2418362,148.68,148.66,6.7265]
[1727306183086,0.2418362,148.68,148.67,1.34505544]
[1727306183913,0.2418362,148.68,148.67,8.07135544]
[1727306184406,0.2418362,148.68,148.67,6.7263]
[1727306184915,0.2418362,148.68,148.65,16.8175]
[1727306185220,0.2418362,148.68,148.66,6.7267]
[1727306185711,0.2418362,148.68,148.67,1.34503039]
[1727306185917,0.2418362,148.68,148.67,8.07133039]
[1727306186791,0.2418362,148.68,148.67,6.97728]
[1727306186990,0.2418362,148.68,148.67,22.28128]
[1727306187994,0.2418362,148.68,148.67,15.304]
[1727306188299,0.2418362,148.68,148.63,21.5136]
[1727306188503,6.9681362,148.68,148.63,21.5136]
[1727306188715,6.9681362,148.68,148.63,28.2415]
[1727306190321,6.9681362,148.68,148.64,8.07274511]
[1727306190786,0.2418362,148.68,148.64,1.34524511]
[1727306190989,0.2418362,148.68,148.63,21.5136]
[1727306191212,0.2418362,148.68,148.64,1.34537313]
[1727306191592,6.9679362,148.68,148.64,1.34537313]
[1727306193215,6.7263,148.67,148.64,1.34537313]
[1727306193417,6.7263,148.67,148.63,22.032]
[1727306193600,6.7263,148.67,148.64,1.34534846]
[1727306194426,6.9677362,148.68,148.64,1.34534846]
[1727306195817,0.2418362,148.68,148.65,6.7271]
[1727306195990,0.2418362,148.68,148.66,1.34514669]
[1727306196190,0.2418362,148.68,148.64,6.7276]
[1727306197505,0.2418362,148.68,148.65,1.34514742]
[1727306198602,0.2418362,148.68,148.65,8.07224742]
[1727306199031,0.2418362,148.68,148.65,6.7271]
[1727306199213,0.2418362,148.68,148.66,1.34515018]
[1727306199413,0.2418362,148.68,148.65,6.7271]
[1727306199619,0.2418362,148.68,148.66,1.34515016]
[1727306201525,6.9677362,148.68,148.66,1.34515016]
[1727306201715,6.727,148.66,148.62,23.5492]
[1727306201922,6.7273,148.65,148.59,39.4198]
[1727306202225,6.7273,148.65,148.6,6.7293]
[1727306202411,0.38605385,148.64,148.55,16.2388]
[1727306202743,6.7298,148.6,148.56,23.5588]
[1727306202903,20.0,148.64,148.56,23.5588]
[1727306203101,20.0,148.64,148.56,16.8276]
[1727306203320,6.7286,148.62,148.57,6.7307]
[1727306204224,20.0,148.64,148.57,6.7307]
[1727306204421,6.7291,148.61,148.56,23.5588]
[1727306204828,6.7291,148.61,148.57,6.7307]
[1727306205039,6.7291,148.61,148.57,8.07663531]
[1727306205731,20.0,148.63,148.59,6.7299]
[1727306205900,20.0,148.63,148.6,1.34568098]
[1727306206514,26.7268,148.66,148.62,6.7285]
[1727306206721,6.7268,148.66,148.62,8.07400798]
[1727306207028,6.7268,148.66,148.62,1.34550798]
[1727306207225,15.046,148.67,148.61,1.34552771]
[1727306207432,15.046,148.67,148.59,6.98068]
[1727306207610,6.7277,148.64,148.6,1.34560864]
[1727306208314,6.7277,148.64,148.6,8.07490864]
[1727306209129,6.7277,148.64,148.6,6.7293]
[1727306210525,0.2418362,148.68,148.61,0.25098]
[1727306210526,20.0,148.66,148.61,0.25098]
[1727306210830,26.7267,148.66,148.62,6.7282]
[1727306211326,20.0,148.66,148.62,6.7282]
[1727306212308,6.7264,148.67,148.62,6.7282]
[1727306212510,6.7264,148.67,148.63,1.34535598]
[1727306212905,6.7264,148.67,148.62,6.7282]
[1727306213305,6.7264,148.67,148.63,1.34535836]
[1727306214527,6.7264,148.67,148.63,8.07335836]
[1727306214728,6.7264,148.67,148.63,6.728]
[1727306214934,0.2418362,148.68,148.62,6.7285]
[1727306215313,6.7264,148.67,148.62,6.7285]
[1727306215825,6.7264,148.67,148.63,6.7281]
[1727306217031,6.7268,148.66,148.62,6.7284]
[1727306217224,6.7268,148.66,148.62,8.07376094]
[1727306217406,0.2418362,148.68,148.62,8.07376094]
[1727306217603,6.7264,148.67,148.62,8.07376094]
[1727306217807,6.7264,148.67,148.62,1.34536094]
[1727306218031,6.7264,148.67,148.63,6.728]
[1727306220316,0.2418362,148.68,148.64,1.34532092]
[1727306220518,6.7263,148.67,148.63,6.728]
[1727306222217,0.2418362,148.68,148.62,16.8209]
[1727306222733,6.7268,148.66,148.62,16.8209]
[1727306222941,6.7268,148.66,148.62,23.5494]
[1727306223238,6.7263,148.67,148.63,8.07332153]
[1727306223433,0.2418362,148.68,148.63,1.34542153]
[1727306223620,6.9677362,148.68,148.64,6.7275]
[1727306223814,0.2418362,148.68,148.64,6.7275]
[1727306224125,0.2418362,148.68,148.65,8.07186892]
[1727306226825,0.2418362,148.68,148.65,6.7267]
[1727306228837,0.2418362,148.68,148.65,0.25098]
[1727306229020,0.2418362,148.68,148.65,8.32297093]
[1727306229219,0.2418362,148.68,148.66,22.5092]
[1727306229524,0.2418362,148.68,148.66,16.4549]
[1727306231222,6.9677362,148.68,148.64,23.5462]
[1727306232142,0.2418362,148.68,148.64,23.5462]
[1727306233225,0.2418362,148.68,148.65,8.32313676]
[1727306233426,0.2418362,148.68,148.65,6.97798]
[1727306234627,0.2418362,148.68,148.66,1.34511362]
[1727306239238,0.2418362,148.68,148.66,8.07171362]
[1727306240025,0.2418362,148.68,148.67,21.9376]
[1727306240230,0.2418362,148.68,148.67,59.50284313]
[1727306240550,0.2418362,148.68,148.67,72.065664]
[1727306241355,0.2418362,148.68,148.67,73.41030328]
[1727306241647,0.2418362,148.68,148.67,72.065664]
[1727306243133,0.2418362,148.68,148.67,84.25830732]
[1727306243341,0.2418362,148.68,148.67,52.065664]
[1727306244021,0.2418362,148.68,148.67,65.60295287]
[1727306245841,0.2418362,148.68,148.67,64.25830732]
[1727306246054,0.2418362,148.68,148.67,52.065664]
[1727306246233,0.2418362,148.68,148.67,64.25830732]
[1727306246953,0.2418362,148.68,148.67,65.60294277]
[1727306247257,0.2418362,148.68,148.67,85.60294277]
[1727306248628,0.2418362,148.72,148.71,19.16802332]
[1727306248827,0.2418362,148.72,148.71,44.28919712]
[1727306249840,0.2418362,148.72,148.71,42.94490732]
[1727306250154,0.2418362,148.72,148.71,6.97538]
[1727306251034,0.2418362,148.72,148.71,6.84989]
[1727306251231,0.2418362,148.72,148.71,6.7244]
[1727306251423,0.2418362,148.72,148.7,23.5366]
[1727306251624,0.2418362,148.72,148.71,6.7244]
[1727306251827,0.2418362,148.72,148.71,8.06897979]
[1727306252662,0.2418362,148.72,148.71,8.19446979]
[1727306252845,0.2418362,148.72,148.71,6.84989]
[1727306253559,0.2418362,148.72,148.71,6.7244]
[1727306254656,0.2418362,148.72,148.71,6.84989]
[1727306256157,0.2418362,148.72,148.71,8.19444448]
[1727306258763,0.2418362,148.72,148.71,6.84989]
[1727306259471,0.2418362,148.72,148.71,8.19443706]
[1727306259966,0.2418362,148.72,148.71,6.84989]
[1727306261267,0.2418362,148.72,148.71,8.1944365]
[1727306262445,0.2418362,148.72,148.71,6.84989]
[1727306265468,0.2418362,148.72,148.71,8.19443676]
[1727306266374,0.2418362,148.72,148.71,32.09681076]
[1727306267472,0.2418362,148.72,148.71,6.84989]
[1727306268361,0.2418362,148.72,148.71,32.09676614]
[1727306268762,0.2418362,148.72,148.71,30.752264]
[1727306271474,0.2418362,148.72,148.71,6.97538]
[1727306272080,0.2418362,148.72,148.71,32.09660032]
[1727306272362,0.2418362,148.72,148.71,44.26914141]
[1727306272937,0.2418362,148.72,148.71,42.92480509]
[1727306274750,0.2418362,148.72,148.71,44.2690872]
[1727306275770,0.2418362,148.72,148.71,64.2690872]
[1727306278360,0.2418362,148.72,148.71,62.92480509]
[1727306280769,0.2418362,148.72,148.71,30.752264]
[1727306281269,0.2418362,148.72,148.71,6.97538]
[1727306281476,0.2418362,148.72,148.71,6.7244]
[1727306282955,0.2418362,148.72,148.7,16.8118]
[1727306283148,0.2418362,148.72,148.69,6.7253]
[1727306286976,0.2418362,148.72,148.68,6.85119]
[1727306288180,0.2418362,148.72,148.68,0.12549]
[1727306288477,0.2418362,148.72,148.69,6.7252]
[1727306289563,0.2418362,148.72,148.7,1.34477157]
[1727306290459,20.2418362,148.72,148.68,6.85119]
[1727306291367,0.2418362,148.72,148.69,18.15779386]
[1727306291676,0.2418362,148.72,148.71,6.7244]
[1727306291876,0.2418362,148.72,148.71,8.06902172]
[1727306292078,0.2418362,148.72,148.71,8.32000172]
[1727306293062,0.2418362,148.72,148.71,6.97538]
[1727306295377,0.2418362,148.72,148.71,44.26924059]
[1727306295555,0.2418362,148.72,148.71,6.97538]
[1727306296699,0.2418362,148.72,148.71,44.2692419]
[1727306298996,0.2418362,148.72,148.71,30.752264]
[1727306300370,0.2418362,148.72,148.71,6.97538]
[1727306301673,0.2418362,148.72,148.71,6.84989]
[1727306302373,0.2418362,148.72,148.71,8.19437555]
[1727306306893,0.2418362,148.72,148.71,6.97538]
[1727306307105,0.2418362,148.72,148.71,30.752264]
[1727306307400,0.2418362,148.72,148.71,6.84989]
[1727306308096,0.2418362,148.72,148.69,16.813]
[1727306308403,0.2418362,148.72,148.69,23.5379]
[1727306308601,0.2418362,148.72,148.7,1.34469602]
[1727306308905,0.2418362,148.72,148.7,8.06939602]
[1727306309792,0.2418362,148.72,148.71,0.12549]
[1727306310678,0.2418362,148.72,148.69,23.5383]
[1727306310881,0.2418362,148.72,148.7,0.12549]
[1727306311090,0.2418362,148.72,148.7,6.85029]
[1727306311404,0.2418362,148.72,148.69,23.5382]
[1727306311770,0.2418362,148.72,148.68,0.12549]
[1727306311998,0.2418362,148.72,148.66,16.8163]
[1727306311999,6.7248,148.71,148.66,23.543]
[1727306312306,6.7248,148.71,148.67,6.7261]
[1727306313101,0.2418362,148.72,148.67,6.7261]
[1727306314280,6.7248,148.71,148.67,0.12549]
[1727306314800,6.7256,148.69,148.65,1.34494709]
[1727306314999,0.38605385,148.68,148.59,16.4872]
[1727306315297,6.7277,148.64,148.6,16.823]
[1727306316877,6.7287,148.62,148.57,23.7993362]
[1727306317076,6.73,148.59,148.57,0.2418362]
[1727306317404,0.38605385,148.61,148.57,0.2418362]
[1727306317588,20.0,148.59,148.57,0.2418362]
[1727306318599,15.9119,148.64,148.57,0.2418362]
[1727306318798,20.0,148.63,148.58,1.34579777]
[1727306319000,15.9119,148.64,148.58,1.34579777]
[1727306319001,6.7285,148.62,148.58,0.12549]
[1727306319194,6.7285,148.62,148.58,1.47124389]
[1727306319395,15.9119,148.64,148.58,1.47124389]
[1727306319596,6.7281,148.63,148.58,8.20154389]
[1727306320177,20.0,148.63,148.58,1.47124389]
[1727306320377,26.7281,148.63,148.58,8.20154389]
[1727306320581,20.0,148.63,148.59,6.7297]
[1727306320801,20.0,148.63,148.58,0.12549]
[1727306321103,26.7282,148.63,148.58,6.85579]
[1727306321681,26.7282,148.63,148.59,1.34567803]
[1727306322182,20.0,148.63,148.6,0.12549]
[1727306322382,20.0,148.63,148.61,1.34559498]
[1727306323319,20.0,148.64,148.6,8.2001855]
[1727306324411,20.0,148.65,148.61,6.729]
[1727306324615,20.0,148.65,148.62,1.34542955]
[1727306328208,20.0,148.65,148.62,0.12549]
[1727306328410,6.7272,148.65,148.61,6.729]
[1727306328615,6.7277,148.64,148.6,0.12549]
[1727306328795,6.7273,148.65,148.6,6.85479]
[1727306330296,6.728,148.64,148.62,0.12549]
[1727306330519,6.7272,148.65,148.63,1.34542873]
[1727306331020,6.7272,148.65,148.62,0.12549]
[1727306332815,20.0,148.67,148.62,0.25098]
[1727306333122,26.7266,148.67,148.62,6.97918]
[1727306335019,20.38605385,148.67,148.62,0.12549]
[1727306335310,6.7274,148.65,148.62,0.12549]
[1727306338211,6.7268,148.66,148.62,0.12549]
[1727306339718,26.7263,148.67,148.62,1.47090219]
[1727306341502,26.7263,148.67,148.63,6.728]
[1727306341709,26.7263,148.67,148.64,1.34527543]
[1727306342220,20.0,148.68,148.64,8.07277543]
[1727306342422,6.4336,148.73,148.66,0.12549]
[1727306342607,6.7245,148.71,148.67,6.7261]
[1727306342793,6.7245,148.71,148.68,1.34496985]
[1727306342996,6.7245,148.71,148.66,0.12549]
[1727306343213,6.7245,148.71,148.66,8.19706138]
[1727306343402,6.7245,148.71,148.66,6.85209]
[1727306343611,6.7245,148.71,148.67,1.34497277]
[1727306344733,20.0,148.7,148.67,1.34497277]
[1727306345021,6.7254,148.69,148.66,0.12549]
[1727306345833,20.2418362,148.72,148.66,1.47054657]
[1727306346006,6.725,148.7,148.66,8.19714657]
[1727306346394,20.2418362,148.72,148.68,0.12549]
[1727306346691,26.9659362,148.72,148.68,6.7258]
[1727306346919,0.2418362,148.72,148.7,0.12549]
[1727306347128,0.2418362,148.72,148.71,1.34466596]
[1727306348430,0.2418362,148.72,148.69,16.8128]
[1727306348928,0.2418362,148.72,148.7,8.0695549]
[1727306349910,0.2418362,148.72,148.7,6.7248]
[1727306350299,0.2418362,148.72,148.71,8.06907049]
[1727306351826,0.2418362,148.72,148.71,31.97144449]
[1727306352024,0.2418362,148.72,148.71,32.09693449]
[1727306352325,0.2418362,148.72,148.71,44.26947558]
[1727306353818,0.2418362,148.72,148.71,64.26947558]
[1727306356833,0.2418362,148.72,148.71,94.26947558]
[1727306357015,0.2418362,148.72,148.71,80.752264]
[1727306357333,0.2418362,148.72,148.71,56.7244]
[1727306358238,0.2418362,148.72,148.71,26.7244]
[1727306358825,0.2418362,148.72,148.71,50.752264]
[1727306359232,0.2418362,148.72,148.71,62.92480509]
[1727306361404,0.2418362,148.72,148.71,50.752264]
[1727306363029,0.2418362,148.72,148.71,6.7244]
[1727306365140,0.2418362,148.72,148.69,16.8128]
[1727306365326,0.2418362,148.72,148.69,23.5381]
[1727306365838,0.2418362,148.72,148.69,16.8128]
[1727306366838,6.9658362,148.72,148.69,16.8128]
[1727306367723,0.2418362,148.72,148.66,16.8161]
[1727306367915,0.38605385,148.71,148.66,16.8161]
[1727306368416,0.38605385,148.71,148.62,27.61214109]
[1727306368619,6.7254,148.69,148.65,6.727]
[1727306369142,6.7249,148.7,148.65,6.727]
[1727306369327,6.7249,148.7,148.66,1.34512923]
[1727306369841,20.0,148.68,148.65,6.727]
[1727306373945,20.0,148.68,148.64,6.7275]
[1727306374947,6.7254,148.69,148.64,6.7275]
[1727306375124,20.0,148.68,148.64,6.7275]
[1727306375526,20.0,148.68,148.65,6.7271]
[1727306376953,20.0,148.69,148.66,1.34515698]
[1727306377136,20.0,148.69,148.66,8.07175698]
[1727306377929,20.0,148.69,148.67,1.34504716]
[1727306378130,13.3262362,148.72,148.67,1.34504716]
[1727306378336,13.3262362,148.72,148.68,6.7257]
[1727306378535,6.9659362,148.72,148.69,1.34491369]
[1727306379651,6.9659362,148.72,148.68,1.34491449]
[1727306381365,20.2418362,148.72,148.65,16.8174]
[1727306381557,6.7251,148.7,148.66,6.7266]
[1727306382633,6.7246,148.71,148.66,6.7266]
[1727306383656,20.2418362,148.72,148.67,1.34503174]
[1727306383860,26.9659362,148.72,148.68,6.7256]
[1727306384031,26.9659362,148.72,148.69,1.34493519]
[1727306386959,0.2418362,148.72,148.69,8.07023519]
[1727306387258,20.2418362,148.72,148.69,8.07023519]
[1727306389457,20.2418362,148.72,148.68,0.12549]
[1727306389638,20.2418362,148.72,148.68,6.85119]
[1727306389841,6.9658362,148.72,148.68,6.85119]
[1727306392062,6.9658362,148.72,148.68,6.7257]
[1727306400548,0.38605385,148.71,148.67,16.8152]
[1727306400760,0.2418362,148.72,148.67,16.8152]
[1727306401354,6.725,148.7,148.67,16.8152]
[1727306401550,6.7245,148.71,148.67,16.8152]
[1727306403269,6.9659362,148.72,148.68,1.34496716]
[1727306403471,6.9659362,148.72,148.68,8.07066716]
[1727306404346,0.2418362,148.72,148.69,16.93849]
[1727306404551,0.2418362,148.72,148.71,6.84989]
[1727306406474,0.2418362,148.72,148.69,47.440374]
[1727306408150,0.2418362,148.72,148.69,23.66349]
[1727306408356,0.2418362,148.72,148.69,23.538]
[1727306408666,0.2418362,148.72,148.69,16.813]
[1727306409176,0.2418362,148.72,148.62,33.6426]
[1727306409177,0.62789005,148.72,148.66,16.8164]
[1727306409413,6.7259,148.68,148.64,6.7273]
[1727306410406,6.7263,148.67,148.63,23.5476]
[1727306410701,6.7263,148.67,148.59,22.7101]
[1727306410702,6.7273,148.65,148.6,23.5527]
[1727306412281,6.1745,148.69,148.61,6.7289]
[1727306412282,6.7268,148.66,148.61,6.7289]
[1727306413796,6.1745,148.69,148.62,8.07385618]
[1727306413797,6.7264,148.67,148.62,8.07385618]
[1727306413999,6.7264,148.67,148.62,6.7284]
[1727306414202,20.0,148.68,148.62,6.7284]
[1727306414400,6.7267,148.66,148.62,6.7284]
[1727306421682,6.7267,148.66,148.6,16.8233]
[1727306421886,6.7267,148.66,148.61,6.7288]
[1727306422397,20.38605385,148.68,148.61,6.7288]
[1727306422609,6.7273,148.65,148.61,6.7288]
[1727306425132,6.1745,148.69,148.62,1.3455208]
[1727306425133,6.7264,148.67,148.62,1.3455208]
[1727306425420,6.7264,148.67,148.63,6.728]
[1727306425593,20.0,148.67,148.64,1.34530874]
[1727306425795,20.0,148.67,148.63,0.12549]
[1727306425997,26.7267,148.67,148.63,0.12549]
[1727306426396,26.7267,148.67,148.63,6.85349]
[1727306427116,26.7267,148.67,148.63,0.12549]
[1727306427328,6.7268,148.66,148.63,0.12549]
[1727306430524,6.7264,148.67,148.63,0.12549]
[1727306431324,26.7259,148.68,148.63,31.97521257]
[1727306431706,26.7254,148.69,148.64,6.7272]
[1727306432117,6.726,148.68,148.64,6.7272]
[1727306432942,6.726,148.68,148.65,1.34516726]
[1727306433493,6.726,148.68,148.63,30.630274]
[1727306433734,20.0,148.69,148.63,23.902374]
[1727306434030,20.0,148.69,148.61,12.17254109]
[1727306434031,6.7275,148.65,148.61,6.7289]
[1727306434198,6.7275,148.65,148.57,39.9620362]
[1727306434199,6.7286,148.62,148.57,6.9723362]
[1727306434394,6.7295,148.6,148.57,0.2418362]
[1727306435307,6.7299,148.59,148.57,0.2418362]
[1727306435508,6.7303,148.58,148.57,0.2418362]
[1727306439925,43.902374,148.58,148.52,0.2418362]
[1727306440235,26.7326,148.53,148.52,0.2418362]
[1727306440566,33.78104385,148.53,148.52,0.2418362]
[1727306440741,57.55792785,148.53,148.52,0.2418362]
[1727306441030,57.68341785,148.53,148.52,0.2418362]
[1727306441199,26.7344,148.49,148.48,0.4132955]
[1727306442335,20.0,148.49,148.48,0.4132955]
[1727306443410,6.7336,148.51,148.48,0.4132955]
[1727306443610,20.0,148.5,148.48,0.4132955]
[1727306452153,6.733,148.53,148.48,7.1479955]
[1727306452350,20.0,148.51,148.48,0.4132955]
[1727306453155,6.7336,148.51,148.48,0.4132955]
[1727306453346,7.11965385,148.51,148.48,0.4132955]
[1727306453659,6.7336,148.51,148.48,0.4132955]
[1727306456561,20.0,148.51,148.48,0.4132955]
[1727306458534,20.0,148.51,148.48,1.76013983]
[1727306458860,20.0,148.52,148.49,6.7343]
[1727306459240,20.0,148.52,148.48,0.4132955]
[1727306459562,20.0,148.52,148.48,7.1480955]
[1727306460264,6.7327,148.53,148.48,0.4132955]
[1727306460443,6.7327,148.53,148.49,6.7344]
[1727306462939,7.03675547,148.56,148.5,1.34667412]
[1727306463135,6.7313,148.56,148.51,6.7331]
[1727306463344,6.7309,148.57,148.53,6.7326]
[1727306463561,6.7308,148.58,148.54,1.34627495]
[1727306464046,7.27686697,148.63,148.54,36.59556801]
[1727306464244,7.27686697,148.63,148.54,24.37807495]
[1727306464556,6.7303,148.58,148.54,23.5616]
[1727306465159,6.7314,148.56,148.52,6.7329]
[1727306466058,6.7314,148.56,148.51,21.8656]
[1727306466255,7.11815385,148.55,148.5,23.5684]
[1727306466444,6.7323,148.54,148.5,23.5684]
[1727306466633,7.11785385,148.55,148.5,23.5684]
[1727306466963,7.11785385,148.55,148.5,16.8345]
[1727306467568,6.7318,148.55,148.5,16.8345]
[1727306467863,6.7325,148.54,148.5,16.8345]
[1727306469059,6.7325,148.54,148.51,1.34659416]
[1727306469468,6.7313,148.56,148.51,1.34659416]
[1727306469664,6.7309,148.57,148.52,6.7327]
[1727306469851,6.7309,148.57,148.53,1.34628615]
[1727306470370,6.7304,148.58,148.53,8.07848615]
[1727306470541,20.0,148.57,148.53,24.43168615]
[1727306470969,26.7308,148.57,148.53,23.0854]
[1727306471645,6.7315,148.56,148.53,16.3532]
[1727306471844,6.7317,148.55,148.53,16.3532]
[1727306472045,6.7322,148.54,148.49,32.8626]
[1727306472561,6.7318,148.55,148.5,8.08011559]
[1727306472977,6.7313,148.56,148.52,6.733]
[1727306473271,6.7313,148.56,148.53,1.34630629]
[1727306473641,6.7313,148.56,148.52,6.733]
[1727306473841,6.7313,148.56,148.51,16.8333]
[1727306474043,6.7313,148.56,148.51,23.5667]
[1727306474449,20.38605385,148.59,148.51,16.8333]
[1727306474652,6.7323,148.54,148.5,6.85929]
[1727306475269,16.8272,148.57,148.5,1.34645566]
[1727306475563,6.7327,148.53,148.49,16.027]
[1727306475768,6.7336,148.51,148.49,16.027]
[1727306475960,6.7336,148.51,148.48,0.4132955]
[1727306476770,6.7332,148.52,148.48,7.1480955]
[1727306477149,20.0,148.52,148.48,7.1480955]
[1727306477464,6.7327,148.53,148.49,1.34664435]
[1727306477682,20.0,148.53,148.49,8.08104435]
[1727306478276,40.728874,148.58,148.51,6.7334]
[1727306478277,6.7313,148.56,148.51,6.7334]
[1727306478644,6.7313,148.56,148.52,1.34630286]
[1727306479543,6.7323,148.54,148.49,16.8357]
[1727306479758,6.7333,148.52,148.48,0.5387855]
[1727306479954,6.7333,148.52,148.48,7.2734855]
[1727306480976,6.7327,148.53,148.48,7.2734855]
[1727306482078,0.38605385,148.52,148.48,0.4132955]
[1727306482250,0.38605385,148.54,148.48,0.4132955]
[1727306483462,6.734,148.5,148.48,0.4132955]
[1727306488279,6.7344,148.49,148.48,0.4132955]
[1727306488465,6.7341,148.5,148.48,0.4132955]
[1727306492284,20.0,148.52,148.49,6.7344]
[1727306492584,20.0,148.52,148.49,8.08107425]
[1727306493159,20.0,148.52,148.49,1.34667425]
[1727306494185,20.0,148.56,148.49,1.34667425]
[1727306494369,6.7331,148.52,148.49,1.34667425]
[1727306494690,6.7331,148.52,148.48,7.1480955]
[1727306494991,6.7331,148.52,148.49,1.34667881]
[1727306495186,20.0,148.52,148.49,6.7343]
[1727306495559,6.7327,148.53,148.49,6.7343]
[1727306495759,20.0,148.52,148.49,6.7343]
[1727306495980,20.0,148.52,148.5,1.34660717]
[1727306498165,20.0,148.52,148.48,0.4132955]
[1727306499591,6.7344,148.49,148.48,0.4132955]
[1727306504078,6.7341,148.5,148.48,0.4132955]
[1727306505976,20.0,148.52,148.48,0.4132955]
[1727306506179,6.7335,148.51,148.48,0.4132955]
[1727306509892,26.7332,148.52,148.48,0.4132955]
[1727306510408,26.7332,148.52,148.48,7.1480955]
[1727306510624,20.0,148.52,148.48,8.49484354]
[1727306510807,20.0,148.52,148.49,6.7342]
[1727306512207,26.7332,148.52,148.48,23.9845955]
[1727306520310,20.0,148.52,148.49,1.34675621]
[1727306520608,15.4112,148.56,148.5,18.18134759]
[1727306520609,20.0,148.56,148.5,18.18134759]
[1727306520821,26.7314,148.56,148.5,18.18134759]
[1727306521010,26.7314,148.56,148.52,6.7329]
[1727306521188,6.7321,148.55,148.5,23.5682]
[1727306521390,7.11815385,148.55,148.5,23.5682]
[1727306522305,7.11815385,148.55,148.51,6.7334]
[1727306522519,6.7321,148.55,148.51,6.7334]
[1727306524310,6.7321,148.55,148.51,8.07991399]
[1727306526020,6.7309,148.57,148.53,6.7325]
[1727306526223,0.38605385,148.56,148.52,16.8323]
[1727306526397,6.7317,148.55,148.52,16.8323]
[1727306529207,0.12549,148.58,148.52,16.8323]
[1727306529526,6.7314,148.56,148.52,16.8323]
[1727306530323,6.7314,148.56,148.52,23.5653]